[Event "*** Titled Tuesday Blitz"]
[Site "Chess.com"]
[Date "2018.09.04"]
[Round "3"]
[White "Bryakin_Mikhail"]
[Black "area_5"]
[Result "1-0"]
[WhiteElo "2535"]
[BlackElo "2570"]
[TimeControl "180+2"]
[EndTime "14:13:36 PDT"]
[Termination "Bryakin_Mikhail won by resignation"]

1. d4 {[%clk 0:02:59.7]} 1... g6 {[%clk 0:03:00.7]} 2. c4 {[%clk 0:03:00.4]}
2... Bg7 {[%clk 0:03:00.8]} 3. e4 {[%clk 0:02:58.6]} 3... c5 {[%clk 0:03:01]} 4.
d5 {[%clk 0:02:57.5]} 4... d6 {[%clk 0:03:01.4]} 5. Nc3 {[%clk 0:02:58.7]} 5...
Nf6 {[%clk 0:02:52.6]} 6. h3 {[%clk 0:02:58.3]} 6... O-O {[%clk 0:02:53.2]} 7.
Nf3 {[%clk 0:02:55.9]} 7... a6 {[%clk 0:02:54.3]} 8. Bd3 {[%clk 0:02:52.9]} 8...
e6 {[%clk 0:02:53.2]} 9. O-O {[%clk 0:02:45.9]} 9... exd5 {[%clk 0:02:53.4]} 10.
exd5 {[%clk 0:02:45.9]} 10... Re8 {[%clk 0:02:42.2]} 11. Bf4 {[%clk 0:02:45.7]}
11... Nh5 {[%clk 0:02:29]} 12. Bh2 {[%clk 0:02:44.2]} 12... Bf8 {[%clk
0:02:29.5]} 13. Qd2 {[%clk 0:02:11.4]} 13... Nd7 {[%clk 0:02:29.1]} 14. a3
{[%clk 0:02:01.9]} 14... Ndf6 {[%clk 0:02:27.1]} 15. b4 {[%clk 0:01:52.1]} 15...
b6 {[%clk 0:02:27.8]} 16. Rfe1 {[%clk 0:01:42.6]} 16... Rxe1+ {[%clk 0:02:15.6]}
17. Rxe1 {[%clk 0:01:41.9]} 17... Ng7 {[%clk 0:02:14.2]} 18. g4 {[%clk
0:01:30.1]} 18... h5 {[%clk 0:02:13.4]} 19. g5 {[%clk 0:01:12.2]} 19... Nfe8
{[%clk 0:02:13.9]} 20. h4 {[%clk 0:01:09.8]} 20... Ra7 {[%clk 0:02:05.4]} 21.
Kg2 {[%clk 0:00:35.2]} 21... Re7 {[%clk 0:02:04.4]} 22. Rxe7 {[%clk 0:00:24.2]}
22... Bxe7 {[%clk 0:01:58.4]} 23. Qf4 {[%clk 0:00:21.4]} 23... Nf5 {[%clk
0:01:48.3]} 24. Ne4 {[%clk 0:00:15.8]} 24... Bf8 {[%clk 0:01:45.1]} 25. Ned2
{[%clk 0:00:05.7]} 25... cxb4 {[%clk 0:01:39.4]} 26. axb4 {[%clk 0:00:06.6]}
26... a5 {[%clk 0:01:40.7]} 27. b5 {[%clk 0:00:04.1]} 27... Qe7 {[%clk
0:01:24.5]} 28. Ne4 {[%clk 0:00:05.1]} 28... Bg7 {[%clk 0:01:21.5]} 29. Qd2
{[%clk 0:00:06]} 29... Qd7 {[%clk 0:01:16.9]} 30. Qc2 {[%clk 0:00:06.4]} 30...
Nxh4+ {[%clk 0:01:15.6]} 31. Nxh4 {[%clk 0:00:04]} 31... Qh3+ {[%clk 0:01:16.7]}
32. Kg1 {[%clk 0:00:04.5]} 32... Qxh4 {[%clk 0:01:18.6]} 33. Bg3 {[%clk
0:00:04.2]} 33... Qg4 {[%clk 0:01:19]} 34. Be2 {[%clk 0:00:04.8]} 34... Qd7
{[%clk 0:01:18.6]} 35. Kg2 {[%clk 0:00:05.2]} 35... Qc7 {[%clk 0:01:18.7]} 36.
Qd3 {[%clk 0:00:06.1]} 36... Bf5 {[%clk 0:01:19.6]} 37. Bf3 {[%clk 0:00:06.5]}
37... Qe7 {[%clk 0:01:19.1]} 38. Qe3 {[%clk 0:00:07.2]} 38... Qd8 {[%clk
0:01:16.7]} 39. Nd2 {[%clk 0:00:06.8]} 39... Bb2 {[%clk 0:01:15.1]} 40. Qb3
{[%clk 0:00:06.7]} 40... Ba1 {[%clk 0:01:14.7]} 41. Bf4 {[%clk 0:00:07.7]} 41...
Ng7 {[%clk 0:01:13.6]} 42. Ne4 {[%clk 0:00:08.6]} 42... Bxe4 {[%clk 0:01:13.4]}
43. Bxe4 {[%clk 0:00:10.5]} 43... Bd4 {[%clk 0:01:14.1]} 44. Qd3 {[%clk
0:00:11.2]} 44... Bc5 {[%clk 0:01:15]} 45. Qc3 {[%clk 0:00:09.4]} 45... Qd7
{[%clk 0:01:15.6]} 46. f3 {[%clk 0:00:08.9]} 46... Nf5 {[%clk 0:01:15]} 47. Qf6
{[%clk 0:00:10.1]} 47... Qe7 {[%clk 0:01:08.9]} 48. Qc3 {[%clk 0:00:05.5]} 48...
Ng7 {[%clk 0:01:03.6]} 49. Qd3 {[%clk 0:00:06.2]} 49... Kh7 {[%clk 0:01:03.6]}
50. Kg3 {[%clk 0:00:07.4]} 50... Qd7 {[%clk 0:01:03.2]} 51. Kg2 {[%clk
0:00:08.2]} 51... Nf5 {[%clk 0:01:04.3]} 52. Qc3 {[%clk 0:00:07.2]} 52... Bd4
{[%clk 0:01:02.9]} 53. Qd3 {[%clk 0:00:08.3]} 53... Bc5 {[%clk 0:01:03.7]} 54.
Qc3 {[%clk 0:00:09.3]} 54... a4 {[%clk 0:01:03.7]} 55. Bc1 {[%clk 0:00:04.4]}
55... Ng7 {[%clk 0:01:00.9]} 56. Bb2 {[%clk 0:00:04.4]} 56... f5 {[%clk
0:00:54]} 57. gxf6 {[%clk 0:00:05.4]} 57... Nf5 {[%clk 0:00:54.8]} 58. f7 {[%clk
0:00:06.4]} 58... Nh4+ {[%clk 0:00:51.3]} 59. Kh2 {[%clk 0:00:05.4]} 1-0

[Event "*** Titled Tuesday Blitz"]
[Site "Chess.com"]
[Date "2018.09.04"]
[Round "3"]
[White "BvsN"]
[Black "Jbd735"]
[Result "1-0"]
[WhiteElo "2242"]
[BlackElo "2333"]
[TimeControl "180+2"]
[EndTime "14:13:43 PDT"]
[Termination "BvsN won by resignation"]

1. d4 {[%clk 0:03:01.9]} 1... d5 {[%clk 0:03:00.2]} 2. c4 {[%clk 0:03:01.7]}
2... e6 {[%clk 0:03:00]} 3. Nc3 {[%clk 0:03:02.4]} 3... c6 {[%clk 0:02:58.9]} 4.
e3 {[%clk 0:03:01.4]} 4... Nf6 {[%clk 0:02:57.8]} 5. Nf3 {[%clk 0:03:01.6]} 5...
Nbd7 {[%clk 0:02:57.6]} 6. Qc2 {[%clk 0:03:02.1]} 6... Bd6 {[%clk 0:02:57.6]} 7.
Bd3 {[%clk 0:03:01.8]} 7... O-O {[%clk 0:02:55.1]} 8. O-O {[%clk 0:03:02.1]}
8... Qe7 {[%clk 0:02:51.7]} 9. Rd1 {[%clk 0:02:46.7]} 9... dxc4 {[%clk
0:02:43.4]} 10. Bxc4 {[%clk 0:02:47.5]} 10... e5 {[%clk 0:02:44.2]} 11. h3
{[%clk 0:02:31.7]} 11... e4 {[%clk 0:02:37.9]} 12. Ng5 {[%clk 0:02:31.2]} 12...
Nb6 {[%clk 0:02:29]} 13. Bb3 {[%clk 0:02:32.1]} 13... Bf5 {[%clk 0:02:26.4]} 14.
f3 {[%clk 0:02:33.1]} 14... Rae8 {[%clk 0:01:32]} 15. Ngxe4 {[%clk 0:02:30.1]}
15... Bb8 {[%clk 0:01:08.6]} 16. Nxf6+ {[%clk 0:02:26.7]} 16... Qxf6 {[%clk
0:01:09.3]} 17. e4 {[%clk 0:02:12]} 17... Qd6 {[%clk 0:01:06.5]} 18. f4 {[%clk
0:02:07]} 18... Bc8 {[%clk 0:00:34.8]} 19. Qf2 {[%clk 0:02:00.9]} 19... Kh8
{[%clk 0:00:31.4]} 20. Be3 {[%clk 0:01:55.1]} 20... f5 {[%clk 0:00:26.1]} 21. e5
{[%clk 0:01:55.4]} 21... Qg6 {[%clk 0:00:24.5]} 22. d5 {[%clk 0:01:46.6]} 22...
Nxd5 {[%clk 0:00:20.8]} 23. Nxd5 {[%clk 0:01:42.9]} 23... cxd5 {[%clk
0:00:22.7]} 24. Bxd5 {[%clk 0:01:43.6]} 24... b6 {[%clk 0:00:18.3]} 25. Rac1
{[%clk 0:01:42.9]} 25... Rd8 {[%clk 0:00:15.3]} 26. Rd2 {[%clk 0:01:23.4]} 26...
Rxd5 {[%clk 0:00:10.4]} 27. Rxd5 {[%clk 0:01:23.7]} 27... Bb7 {[%clk 0:00:11.8]}
28. Rd2 {[%clk 0:01:18.9]} 28... Be4 {[%clk 0:00:09.6]} 29. Rcd1 {[%clk
0:01:17.4]} 29... Bc7 {[%clk 0:00:08.8]} 30. Rd7 {[%clk 0:01:17.5]} 30... Qc6
{[%clk 0:00:08.2]} 31. Qg3 {[%clk 0:01:12.6]} 31... Rg8 {[%clk 0:00:07.2]} 32.
e6 {[%clk 0:01:07.4]} 32... Bb8 {[%clk 0:00:04.8]} 33. e7 {[%clk 0:00:59.7]}
33... Qe6 {[%clk 0:00:05.2]} 34. Qg5 {[%clk 0:00:35.6]} 34... h6 {[%clk
0:00:04.7]} 35. Qg3 {[%clk 0:00:31.9]} 35... Bc6 {[%clk 0:00:05.4]} 36. Rd8
{[%clk 0:00:26.3]} 36... Qxe7 {[%clk 0:00:05.6]} 37. Rxg8+ {[%clk 0:00:26.3]}
37... Kxg8 {[%clk 0:00:07.5]} 38. Bd4 {[%clk 0:00:25.4]} 38... Bc7 {[%clk
0:00:08]} 39. Re1 {[%clk 0:00:26.5]} 39... Qd7 {[%clk 0:00:08.1]} 40. Bc3 {[%clk
0:00:22.7]} 40... Be4 {[%clk 0:00:08.8]} 41. Qf2 {[%clk 0:00:18.5]} 41... Qd6
{[%clk 0:00:07.6]} 42. Be5 {[%clk 0:00:16.8]} 42... Qd7 {[%clk 0:00:08]} 43.
Bxc7 {[%clk 0:00:17.8]} 43... Qxc7 {[%clk 0:00:09.4]} 44. Kh2 {[%clk 0:00:17.5]}
44... Qc6 {[%clk 0:00:09.7]} 45. Qd2 {[%clk 0:00:17.2]} 45... Qe6 {[%clk
0:00:09.9]} 46. Rd1 {[%clk 0:00:18]} 46... Qxa2 {[%clk 0:00:10.2]} 47. Qd8+
{[%clk 0:00:14.4]} 47... Kh7 {[%clk 0:00:10.7]} 48. Rd2 {[%clk 0:00:15.5]} 48...
Qe6 {[%clk 0:00:10.6]} 49. Qc7 {[%clk 0:00:14.9]} 49... Qg6 {[%clk 0:00:10.6]}
50. Qc3 {[%clk 0:00:14.2]} 50... a5 {[%clk 0:00:10.6]} 51. Qg3 {[%clk
0:00:14.6]} 51... Qf6 {[%clk 0:00:10.3]} 52. Rd7 {[%clk 0:00:15.3]} 52... Qxb2
{[%clk 0:00:10.2]} 53. Rd8 {[%clk 0:00:12.1]} 53... a4 {[%clk 0:00:10.6]} 54.
Rd6 {[%clk 0:00:05.9]} 54... Qxg2+ {[%clk 0:00:09.6]} 55. Qxg2 {[%clk
0:00:06.9]} 55... Bxg2 {[%clk 0:00:09.8]} 56. Kxg2 {[%clk 0:00:08.5]} 56... b5
{[%clk 0:00:10.9]} 57. Rb6 {[%clk 0:00:09.5]} 57... a3 {[%clk 0:00:11.1]} 58.
Rxb5 {[%clk 0:00:10.8]} 58... a2 {[%clk 0:00:10.6]} 59. Ra5 {[%clk 0:00:12.4]}
1-0

[Event "*** Titled Tuesday Blitz"]
[Site "Chess.com"]
[Date "2018.09.04"]
[Round "3"]
[White "AndrewDGreen"]
[Black "ChainsOfFantasia"]
[Result "1-0"]
[WhiteElo "2217"]
[BlackElo "2373"]
[TimeControl "180+2"]
[EndTime "14:13:53 PDT"]
[Termination "AndrewDGreen won by resignation"]

1. d4 {[%clk 0:03:01.9]} 1... Nf6 {[%clk 0:03:00.1]} 2. Nf3 {[%clk 0:03:02.3]}
2... c5 {[%clk 0:02:59.6]} 3. d5 {[%clk 0:03:02]} 3... b5 {[%clk 0:03:00.4]} 4.
Bg5 {[%clk 0:03:01.5]} 4... Qb6 {[%clk 0:03:01.2]} 5. Bxf6 {[%clk 0:02:59.8]}
5... Qxf6 {[%clk 0:03:01.3]} 6. c3 {[%clk 0:03:00.6]} 6... g5 {[%clk 0:02:57.5]}
7. e3 {[%clk 0:02:33.4]} 7... g4 {[%clk 0:02:56.2]} 8. Nfd2 {[%clk 0:02:33.2]}
8... h5 {[%clk 0:02:38.7]} 9. Bxb5 {[%clk 0:02:25.6]} 9... Bb7 {[%clk
0:02:31.1]} 10. Bc4 {[%clk 0:02:13.9]} 10... Rg8 {[%clk 0:02:24.8]} 11. Qb3
{[%clk 0:01:57.6]} 11... Qb6 {[%clk 0:02:03.8]} 12. O-O {[%clk 0:01:47.1]} 12...
h4 {[%clk 0:01:53.2]} 13. Na3 {[%clk 0:01:42.5]} 13... e6 {[%clk 0:01:26.4]} 14.
Ne4 {[%clk 0:01:31.7]} 14... Be7 {[%clk 0:01:20.4]} 15. Nb5 {[%clk 0:01:14.2]}
15... Kf8 {[%clk 0:00:50.4]} 16. Rad1 {[%clk 0:00:51.3]} 16... Na6 {[%clk
0:00:28]} 17. a4 {[%clk 0:00:41.8]} 17... Rb8 {[%clk 0:00:25.4]} 18. Qc2 {[%clk
0:00:38.8]} 18... Bxd5 {[%clk 0:00:20.7]} 19. Bxd5 {[%clk 0:00:40.7]} 19... exd5
{[%clk 0:00:22.4]} 20. Rxd5 {[%clk 0:00:40.6]} 20... Qe6 {[%clk 0:00:23.4]} 21.
Rfd1 {[%clk 0:00:37.1]} 21... Rb7 {[%clk 0:00:21.5]} 22. Ned6 {[%clk 0:00:36.9]}
22... Bxd6 {[%clk 0:00:17.3]} 23. Rxd6 {[%clk 0:00:38.8]} 23... Qe7 {[%clk
0:00:16.4]} 24. Qf5 {[%clk 0:00:36.2]} 24... g3 {[%clk 0:00:14.8]} 25. h3 {[%clk
0:00:32.5]} 25... gxf2+ {[%clk 0:00:15.8]} 26. Qxf2 {[%clk 0:00:33.3]} 26... Nb8
{[%clk 0:00:16.9]} 27. Qf4 {[%clk 0:00:25]} 27... Nc6 {[%clk 0:00:16.8]} 28. Rf6
{[%clk 0:00:22.3]} 28... a6 {[%clk 0:00:17.2]} 29. Nd6 {[%clk 0:00:22.8]} 29...
Rg7 {[%clk 0:00:18.2]} 30. Nxb7 {[%clk 0:00:23.4]} 30... Ne5 {[%clk 0:00:18.8]}
31. Nd6 {[%clk 0:00:19.8]} 31... Ng6 {[%clk 0:00:19.8]} 32. Qf2 {[%clk
0:00:19.2]} 32... Ne5 {[%clk 0:00:20.1]} 33. Rf1 {[%clk 0:00:16.9]} 33... Kg8
{[%clk 0:00:21.2]} 34. Qf5 {[%clk 0:00:15.4]} 34... a5 {[%clk 0:00:19.1]} 35.
Qf4 {[%clk 0:00:11.8]} 35... Nd3 {[%clk 0:00:19.2]} 36. Qf3 {[%clk 0:00:10.3]}
36... Nxb2 {[%clk 0:00:19.8]} 37. Qa8+ {[%clk 0:00:06.6]} 37... Kh7 {[%clk
0:00:19.9]} 38. Qf3 {[%clk 0:00:07.2]} 38... Nd3 {[%clk 0:00:20.1]} 39. Qe4+
{[%clk 0:00:07.3]} 39... Qxe4 {[%clk 0:00:19.6]} 40. Nxe4 {[%clk 0:00:09.2]}
40... Kg8 {[%clk 0:00:18.3]} 41. Nd6 {[%clk 0:00:08]} 41... Ne5 {[%clk
0:00:17.2]} 42. Nf5 {[%clk 0:00:07.9]} 42... Rg5 {[%clk 0:00:14.9]} 43. Rd6
{[%clk 0:00:08.3]} 43... Nc4 {[%clk 0:00:12.6]} 44. Rxd7 {[%clk 0:00:08.4]}
44... Nb6 {[%clk 0:00:13.7]} 45. Ra7 {[%clk 0:00:07.2]} 45... Nxa4 {[%clk
0:00:14.3]} 46. Rxa5 {[%clk 0:00:08.3]} 46... Nxc3 {[%clk 0:00:15.8]} 47. Rxc5
{[%clk 0:00:09.1]} 47... Ne4 {[%clk 0:00:15.8]} 48. Ne7+ {[%clk 0:00:08.4]}
48... Kf8 {[%clk 0:00:15.1]} 49. Rxg5 {[%clk 0:00:09.9]} 49... Nxg5 {[%clk
0:00:17]} 50. Nd5 {[%clk 0:00:10.6]} 50... Kg7 {[%clk 0:00:17.6]} 51. Nf4 {[%clk
0:00:10.6]} 51... Ne4 {[%clk 0:00:18.2]} 52. Nd3 {[%clk 0:00:11]} 52... Kg6
{[%clk 0:00:15.1]} 53. Rf4 {[%clk 0:00:12]} 53... Ng3 {[%clk 0:00:16.2]} 54.
Ne5+ {[%clk 0:00:12.4]} 54... Kh5 {[%clk 0:00:15.4]} 55. Nf3 {[%clk 0:00:10.3]}
55... Ne2+ {[%clk 0:00:14.2]} 56. Kf2 {[%clk 0:00:11.4]} 56... Nxf4 {[%clk
0:00:16.1]} 57. exf4 {[%clk 0:00:13.3]} 57... Kg6 {[%clk 0:00:17.4]} 58. Ke3
{[%clk 0:00:14.5]} 58... Kf5 {[%clk 0:00:18.5]} 59. Nd4+ {[%clk 0:00:15.4]}
59... Kg6 {[%clk 0:00:20.4]} 60. Ke4 {[%clk 0:00:16.8]} 60... Kh5 {[%clk
0:00:22.1]} 61. Kf5 {[%clk 0:00:16.9]} 61... Kh6 {[%clk 0:00:23]} 62. Kf6 {[%clk
0:00:18.4]} 62... Kh5 {[%clk 0:00:24.9]} 63. Kxf7 {[%clk 0:00:19.3]} 63... Kh6
{[%clk 0:00:26.5]} 64. f5 {[%clk 0:00:20.7]} 64... Kh5 {[%clk 0:00:28.4]} 65. f6
{[%clk 0:00:21.9]} 65... Kg5 {[%clk 0:00:30.2]} 66. Ke7 {[%clk 0:00:23.1]} 1-0

[Event "*** Titled Tuesday Blitz"]
[Site "Chess.com"]
[Date "2018.09.04"]
[Round "3"]
[White "FMchesstrainer"]
[Black "MaxLeto"]
[Result "0-1"]
[WhiteElo "2329"]
[BlackElo "2371"]
[TimeControl "180+2"]
[EndTime "14:13:54 PDT"]
[Termination "MaxLeto won on time"]

1. d4 {[%clk 0:03:01.9]} 1... d5 {[%clk 0:02:31.4]} 2. Bf4 {[%clk 0:03:01.4]}
2... h5 {[%clk 0:02:29.1]} 3. e3 {[%clk 0:03:00.9]} 3... h4 {[%clk 0:02:30.2]}
4. h3 {[%clk 0:03:01.2]} 4... c6 {[%clk 0:02:29.3]} 5. Nd2 {[%clk 0:03:00.9]}
5... Bf5 {[%clk 0:02:30]} 6. c4 {[%clk 0:02:58.7]} 6... e6 {[%clk 0:02:30.2]} 7.
Ngf3 {[%clk 0:02:53.8]} 7... Nd7 {[%clk 0:02:25.6]} 8. Be2 {[%clk 0:02:48]} 8...
Be7 {[%clk 0:02:14.2]} 9. O-O {[%clk 0:02:48.3]} 9... g5 {[%clk 0:01:54.5]} 10.
Bh2 {[%clk 0:02:44.7]} 10... g4 {[%clk 0:01:51.3]} 11. hxg4 {[%clk 0:02:44.6]}
11... Bxg4 {[%clk 0:01:51.9]} 12. Ne5 {[%clk 0:02:44.7]} 12... Bf5 {[%clk
0:01:17.1]} 13. cxd5 {[%clk 0:02:39.3]} 13... exd5 {[%clk 0:01:15.2]} 14. Nxd7
{[%clk 0:02:35.2]} 14... Qxd7 {[%clk 0:01:16.1]} 15. Be5 {[%clk 0:02:33.6]}
15... Nf6 {[%clk 0:01:16.7]} 16. Nf3 {[%clk 0:02:30.5]} 16... Be4 {[%clk
0:00:45.9]} 17. Bd3 {[%clk 0:02:23.4]} 17... Rg8 {[%clk 0:00:41.9]} 18. Bxe4
{[%clk 0:02:21.7]} 18... Nxe4 {[%clk 0:00:42.1]} 19. Ne1 {[%clk 0:02:08.4]}
19... O-O-O {[%clk 0:00:36.9]} 20. a3 {[%clk 0:01:58]} 20... Rg6 {[%clk
0:00:35.6]} 21. f3 {[%clk 0:01:44.5]} 21... Nd6 {[%clk 0:00:31.3]} 22. Nd3
{[%clk 0:01:31.3]} 22... Nf5 {[%clk 0:00:30.6]} 23. Qe2 {[%clk 0:01:27.5]} 23...
Rdg8 {[%clk 0:00:31.7]} 24. Nf4 {[%clk 0:01:27.4]} 24... Rg5 {[%clk 0:00:23.7]}
25. Nh3 {[%clk 0:01:25.7]} 25... R5g6 {[%clk 0:00:21.8]} 26. Rf2 {[%clk
0:01:24.3]} 26... Bd6 {[%clk 0:00:20.9]} 27. Bxd6 {[%clk 0:01:23.9]} 27... Qxd6
{[%clk 0:00:22.8]} 28. Nf4 {[%clk 0:01:24.4]} 28... Rg3 {[%clk 0:00:23.8]} 29.
Kf1 {[%clk 0:01:19.3]} 29... Qh6 {[%clk 0:00:22.1]} 30. Qd3 {[%clk 0:01:12.9]}
30... R3g5 {[%clk 0:00:20.9]} 31. Ke2 {[%clk 0:01:12.2]} 31... Re8 {[%clk
0:00:20.8]} 32. Kd2 {[%clk 0:01:01.6]} 32... Rxe3 {[%clk 0:00:19.9]} 33. Qc2
{[%clk 0:01:00.5]} 33... Re7 {[%clk 0:00:11.1]} 34. Re1 {[%clk 0:00:58.9]} 34...
Nxd4 {[%clk 0:00:10.4]} 35. Qd3 {[%clk 0:00:55.3]} 35... Ne6 {[%clk 0:00:07.6]}
36. Nxe6 {[%clk 0:00:47.3]} 36... fxe6 {[%clk 0:00:08.4]} 37. Kd1 {[%clk
0:00:46.9]} 37... e5 {[%clk 0:00:09.5]} 38. Qe3 {[%clk 0:00:44.6]} 38... Qf6
{[%clk 0:00:09.4]} 39. Qxa7 {[%clk 0:00:44.7]} 39... Qf4 {[%clk 0:00:08.8]} 40.
Rc2 {[%clk 0:00:42.9]} 40... Kc7 {[%clk 0:00:08.8]} 41. Qa5+ {[%clk 0:00:43.2]}
41... Kc8 {[%clk 0:00:08.7]} 42. Qa8+ {[%clk 0:00:42.8]} 42... Kc7 {[%clk
0:00:09.4]} 43. Qa5+ {[%clk 0:00:42]} 43... Kd7 {[%clk 0:00:09.6]} 44. Qb6
{[%clk 0:00:42.4]} 44... Qd4+ {[%clk 0:00:09.8]} 45. Qxd4 {[%clk 0:00:43.3]}
45... exd4 {[%clk 0:00:11.7]} 46. Rxe7+ {[%clk 0:00:43.7]} 46... Kxe7 {[%clk
0:00:13.6]} 47. Re2+ {[%clk 0:00:44]} 47... Kd6 {[%clk 0:00:14.9]} 48. b4 {[%clk
0:00:44.7]} 48... b6 {[%clk 0:00:16.2]} 49. Kd2 {[%clk 0:00:45.9]} 49... c5
{[%clk 0:00:17.7]} 50. Kd3 {[%clk 0:00:46.8]} 50... Kc6 {[%clk 0:00:19.4]} 51.
f4 {[%clk 0:00:38.9]} 51... Rg3+ {[%clk 0:00:20.8]} 52. Kd2 {[%clk 0:00:38.8]}
52... Rxa3 {[%clk 0:00:22.4]} 53. f5 {[%clk 0:00:39.3]} 53... Ra2+ {[%clk
0:00:21.7]} 54. Ke1 {[%clk 0:00:38.5]} 54... Rxe2+ {[%clk 0:00:23.1]} 55. Kxe2
{[%clk 0:00:39.9]} 55... Kd6 {[%clk 0:00:25]} 56. Kd3 {[%clk 0:00:41.4]} 56...
Ke5 {[%clk 0:00:26.2]} 0-1

[Event "*** Titled Tuesday Blitz"]
[Site "Chess.com"]
[Date "2018.09.04"]
[Round "3"]
[White "VladDobrov"]
[Black "Cryptochess"]
[Result "0-1"]
[WhiteElo "2708"]
[BlackElo "2517"]
[TimeControl "180+2"]
[EndTime "14:13:55 PDT"]
[Termination "Cryptochess won by resignation"]

1. d4 {[%clk 0:03:01.9]} 1... Nf6 {[%clk 0:03:00.7]} 2. c4 {[%clk 0:03:02.9]}
2... e6 {[%clk 0:03:00.5]} 3. Nf3 {[%clk 0:03:03.3]} 3... d5 {[%clk 0:03:00.6]}
4. Nc3 {[%clk 0:03:02]} 4... a6 {[%clk 0:03:01.3]} 5. cxd5 {[%clk 0:03:00.1]}
5... exd5 {[%clk 0:03:03.2]} 6. Bg5 {[%clk 0:03:00.5]} 6... Be7 {[%clk 0:03:04]}
7. e3 {[%clk 0:03:01.5]} 7... O-O {[%clk 0:03:04.8]} 8. Bd3 {[%clk 0:03:02.5]}
8... Nbd7 {[%clk 0:02:48.9]} 9. Qc2 {[%clk 0:03:02.7]} 9... c5 {[%clk
0:02:37.9]} 10. dxc5 {[%clk 0:02:38.1]} 10... Nxc5 {[%clk 0:02:38.1]} 11. Be2
{[%clk 0:02:14.1]} 11... Nce4 {[%clk 0:02:18.1]} 12. Bh4 {[%clk 0:02:03.2]}
12... Bf5 {[%clk 0:02:11.3]} 13. Nd4 {[%clk 0:01:34.5]} 13... Bg6 {[%clk
0:02:03.9]} 14. Qb3 {[%clk 0:01:25.8]} 14... Rc8 {[%clk 0:01:45.8]} 15. Nxe4
{[%clk 0:01:26.5]} 15... Nxe4 {[%clk 0:01:43.9]} 16. Bxe7 {[%clk 0:01:26.9]}
16... Qxe7 {[%clk 0:01:45.5]} 17. Rd1 {[%clk 0:01:21.2]} 17... Rc5 {[%clk
0:01:13.2]} 18. O-O {[%clk 0:01:21.1]} 18... Rfc8 {[%clk 0:01:13.5]} 19. Rfe1
{[%clk 0:01:06.7]} 19... Qf6 {[%clk 0:01:08.8]} 20. Bf3 {[%clk 0:00:51]} 20...
b5 {[%clk 0:01:02.4]} 21. Ne2 {[%clk 0:00:34.7]} 21... Ng5 {[%clk 0:00:57.8]}
22. Nd4 {[%clk 0:00:25.5]} 22... Nxf3+ {[%clk 0:00:55.1]} 23. gxf3 {[%clk
0:00:27.4]} 23... Bc2 {[%clk 0:00:51.1]} 24. Nxc2 {[%clk 0:00:27.8]} 24... Rxc2
{[%clk 0:00:52.7]} 25. Qxd5 {[%clk 0:00:29.4]} 25... Rxb2 {[%clk 0:00:34.9]} 26.
Rd2 {[%clk 0:00:30.2]} 26... Rxd2 {[%clk 0:00:30.5]} 27. Qxd2 {[%clk 0:00:32.1]}
27... Qxf3 {[%clk 0:00:29.3]} 28. Qd7 {[%clk 0:00:33.5]} 28... Qc6 {[%clk
0:00:24.6]} 29. Rd1 {[%clk 0:00:33.5]} 29... g6 {[%clk 0:00:24.6]} 30. Qxc6
{[%clk 0:00:33]} 30... Rxc6 {[%clk 0:00:26.5]} 31. Rd8+ {[%clk 0:00:33.6]} 31...
Kg7 {[%clk 0:00:27.4]} 32. Rd4 {[%clk 0:00:34.1]} 32... Rb6 {[%clk 0:00:28.1]}
33. a3 {[%clk 0:00:33.4]} 33... a5 {[%clk 0:00:29.4]} 34. Rd3 {[%clk 0:00:33.3]}
34... b4 {[%clk 0:00:30.4]} 35. axb4 {[%clk 0:00:35.2]} 35... axb4 {[%clk
0:00:32]} 36. Rb3 {[%clk 0:00:36.8]} 36... f5 {[%clk 0:00:33.4]} 37. f3 {[%clk
0:00:37.6]} 37... Kf6 {[%clk 0:00:35]} 38. Kf2 {[%clk 0:00:39.5]} 38... Ke5
{[%clk 0:00:36.5]} 39. Ke2 {[%clk 0:00:41.4]} 39... Kd5 {[%clk 0:00:38.2]} 40.
Kd3 {[%clk 0:00:43.3]} 40... Kc5 {[%clk 0:00:39.9]} 41. Rb1 {[%clk 0:00:44.1]}
41... Kb5 {[%clk 0:00:40.9]} 42. Kc2 {[%clk 0:00:44.4]} 42... Kc4 {[%clk
0:00:40.4]} 43. Rd1 {[%clk 0:00:45.5]} 43... Re6 {[%clk 0:00:34]} 44. Rd4+
{[%clk 0:00:46.1]} 44... Kc5 {[%clk 0:00:35.1]} 45. Rd3 {[%clk 0:00:45.8]} 45...
Kb5 {[%clk 0:00:30.9]} 46. Kb3 {[%clk 0:00:45.9]} 46... Kc5 {[%clk 0:00:32]} 47.
h4 {[%clk 0:00:44.7]} 47... Ra6 {[%clk 0:00:32.6]} 48. Kb2 {[%clk 0:00:43.1]}
48... Ra3 {[%clk 0:00:31]} 49. Rd7 {[%clk 0:00:30.5]} 49... Rxe3 {[%clk
0:00:31.4]} 50. Rxh7 {[%clk 0:00:31.6]} 50... Rxf3 {[%clk 0:00:31.4]} 51. Rg7
{[%clk 0:00:32.9]} 51... Rh3 {[%clk 0:00:24.7]} 52. Rxg6 {[%clk 0:00:33.8]}
52... Rxh4 {[%clk 0:00:26.3]} 53. Rf6 {[%clk 0:00:32.6]} 53... Rf4 {[%clk
0:00:27.2]} 54. Rf8 {[%clk 0:00:33.7]} 54... Rf3 {[%clk 0:00:24.8]} 55. Kc2
{[%clk 0:00:33.2]} 55... Kd4 {[%clk 0:00:21.2]} 56. Kd2 {[%clk 0:00:34.1]} 56...
b3 {[%clk 0:00:20.3]} 57. Rd8+ {[%clk 0:00:34.2]} 57... Kc4 {[%clk 0:00:21.4]}
58. Rc8+ {[%clk 0:00:35.2]} 58... Kb4 {[%clk 0:00:22.8]} 59. Kc1 {[%clk
0:00:35]} 59... Rf1+ {[%clk 0:00:20.3]} 60. Kb2 {[%clk 0:00:35.6]} 60... Rf2+
{[%clk 0:00:21.9]} 61. Kb1 {[%clk 0:00:36.9]} 61... f4 {[%clk 0:00:22.9]} 62.
Rf8 {[%clk 0:00:37.6]} 62... Kc3 {[%clk 0:00:23]} 63. Rc8+ {[%clk 0:00:38.3]}
63... Kd3 {[%clk 0:00:24.2]} 64. Rd8+ {[%clk 0:00:39.5]} 64... Ke4 {[%clk
0:00:23.4]} 65. Re8+ {[%clk 0:00:40.6]} 65... Kf3 {[%clk 0:00:23.9]} 66. Rb8
{[%clk 0:00:41.7]} 66... b2 {[%clk 0:00:23.2]} 67. Rg8 {[%clk 0:00:42.9]} 67...
Re2 {[%clk 0:00:21.2]} 68. Rf8 {[%clk 0:00:42.6]} 68... Kg3 {[%clk 0:00:22.5]}
69. Rg8+ {[%clk 0:00:44]} 69... Kf2 {[%clk 0:00:23.8]} 70. Rf8 {[%clk
0:00:45.5]} 70... f3 {[%clk 0:00:25.3]} 71. Ka2 {[%clk 0:00:44.1]} 71... Kg2
{[%clk 0:00:25]} 0-1